[Event "Titled Tuesday Blitz August 22 Late 2023"]
[White "Harish, Neeraj"]
[Black "Aqib Javaid Butt"]
[WhiteFideId "30958130"]
[BlackFideId "7801262"]
[WhiteElo "2336"]
[BlackElo "1976"]
[Result "1-0"]
[Round "3"]
[TimeControl "180+1"]
[Date "2023.08.22"]
[WhiteClock "0:00:20"]
[BlackClock "0:00:00"]
[Board "217"]

1. e4 {[%clk 0:03:00]}  c6 {[%clk 0:02:57]} 2. d4 {[%clk 0:02:59]}  d5 {[%clk 0:02:57]} 3. e5 {[%clk 0:03:00]}  Bf5 {[%clk 0:02:56]} 4. h4 {[%clk 0:02:58]}  h5 {[%clk 0:02:55]} 5. Bd3 {[%clk 0:02:57]}  Bxd3 {[%clk 0:02:52]} 6. Qxd3 {[%clk 0:02:58]}  e6 {[%clk 0:02:53]} 7. Bg5 {[%clk 0:02:57]}  Qb6 {[%clk 0:02:46]} 8. Nd2 {[%clk 0:02:55]}  c5 {[%clk 0:02:44]} 9. c4 {[%clk 0:02:54]}  cxd4 {[%clk 0:02:14]} 10. cxd5 {[%clk 0:02:42]}  exd5 {[%clk 0:01:53]} 11. Ngf3 {[%clk 0:02:41]}  Bc5 {[%clk 0:01:20]} 12. O-O {[%clk 0:02:26]}  Ne7 {[%clk 0:01:12]} 13. Nb3 {[%clk 0:02:25]}  Na6 {[%clk 0:00:52]} 14. Nxc5 {[%clk 0:01:53]}  Nxc5 {[%clk 0:00:49]} 15. Qxd4 {[%clk 0:01:52]}  Ne6 {[%clk 0:00:50]} 16. Qxb6 {[%clk 0:01:48]}  axb6 {[%clk 0:00:51]} 17. Be3 {[%clk 0:01:46]}  b5 {[%clk 0:00:46]} 18. Rfd1 {[%clk 0:01:39]}  O-O {[%clk 0:00:38]} 19. a3 {[%clk 0:01:32]}  Rfc8 {[%clk 0:00:25]} 20. Rac1 {[%clk 0:01:30]}  Rc4 {[%clk 0:00:23]} 21. Nd2 {[%clk 0:01:25]}  Rxh4 {[%clk 0:00:20]} 22. g3 {[%clk 0:01:09]}  Rg4 {[%clk 0:00:15]} 23. Nb3 {[%clk 0:01:01]}  h4 {[%clk 0:00:13]} 24. Kh2 {[%clk 0:00:40]}  Nf5 {[%clk 0:00:11]} 25. Rxd5 {[%clk 0:00:40]}  hxg3+ {[%clk 0:00:09]} 26. Kh3 {[%clk 0:00:35]}  Rh4+ {[%clk 0:00:02]} 27. Kg2 {[%clk 0:00:35]}  Rh2+ {[%clk 0:00:03]} 28. Kf3 {[%clk 0:00:35]}  Nxe3 {[%clk 0:00:03]} 29. fxe3 {[%clk 0:00:33]}  g2 {[%clk 0:00:03]} 30. Kf2 {[%clk 0:00:30]}  Ng5 {[%clk 0:00:00]} 31. Kg3 {[%clk 0:00:20]} 1-0


[Site "https://www.chess.com"]

[Event "Titled Tuesday Blitz August 22 Late 2023"]
[White "Nakamura, Hikaru"]
[Black "Kamsky, Gata"]
[WhiteFideId "2016192"]
[BlackFideId "2000024"]
[WhiteElo "3224"]
[BlackElo "2925"]
[Result "1-0"]
[Round "4"]
[TimeControl "180+1"]
[Date "2023.08.22"]
[WhiteClock "0:00:10"]
[BlackClock "0:00:06"]
[Board "1"]

1. a3 {[%clk 0:03:00]}  d5 {[%clk 0:02:59]} 2. Nf3 {[%clk 0:02:59]}  Bf5 {[%clk 0:02:59]} 3. c4 {[%clk 0:02:58]}  e6 {[%clk 0:02:55]} 4. Qb3 {[%clk 0:02:58]}  b6 {[%clk 0:02:43]} 5. cxd5 {[%clk 0:02:56]}  exd5 {[%clk 0:02:41]} 6. Nc3 {[%clk 0:02:55]}  Nf6 {[%clk 0:02:40]} 7. d3 {[%clk 0:02:52]}  Be7 {[%clk 0:02:36]} 8. g3 {[%clk 0:02:49]}  O-O {[%clk 0:02:34]} 9. Bg2 {[%clk 0:02:49]}  c5 {[%clk 0:02:29]} 10. Bg5 {[%clk 0:02:28]}  Be6 {[%clk 0:02:22]} 11. d4 {[%clk 0:02:27]}  Nc6 {[%clk 0:02:18]} 12. Rd1 {[%clk 0:02:27]}  c4 {[%clk 0:02:14]} 13. Qc2 {[%clk 0:02:25]}  h6 {[%clk 0:02:11]} 14. Bxf6 {[%clk 0:02:23]}  Bxf6 {[%clk 0:02:11]} 15. O-O {[%clk 0:02:23]}  Rc8 {[%clk 0:01:35]} 16. e4 {[%clk 0:02:03]}  dxe4 {[%clk 0:01:34]} 17. Qxe4 {[%clk 0:02:04]}  Ne7 {[%clk 0:01:28]} 18. Ne5 {[%clk 0:01:58]}  Bf5 {[%clk 0:01:22]} 19. Qf3 {[%clk 0:01:56]}  Bxe5 {[%clk 0:01:21]} 20. dxe5 {[%clk 0:01:56]}  Bd3 {[%clk 0:01:22]} 21. Rfe1 {[%clk 0:01:56]}  Nc6 {[%clk 0:01:17]} 22. Bf1 {[%clk 0:01:32]}  Nd4 {[%clk 0:01:08]} 23. Qg4 {[%clk 0:01:30]}  Nc2 {[%clk 0:01:04]} 24. Re4 {[%clk 0:01:26]}  f5 {[%clk 0:00:53]} 25. exf6 {[%clk 0:01:26]}  Qxf6 {[%clk 0:00:53]} 26. Rf4 {[%clk 0:01:25]}  Qe5 {[%clk 0:00:42]} 27. Bxd3 {[%clk 0:00:54]}  cxd3 {[%clk 0:00:40]} 28. Rxf8+ {[%clk 0:00:54]}  Rxf8 {[%clk 0:00:39]} 29. Qc4+ {[%clk 0:00:54]}  Kh8 {[%clk 0:00:39]} 30. Qxd3 {[%clk 0:00:55]}  Ne1 {[%clk 0:00:37]} 31. Qe4 {[%clk 0:00:54]}  Nf3+ {[%clk 0:00:37]} 32. Kg2 {[%clk 0:00:54]}  Qc5 {[%clk 0:00:33]} 33. Qe2 {[%clk 0:00:26]}  Qc6 {[%clk 0:00:24]} 34. Nd5 {[%clk 0:00:22]}  Ng5 {[%clk 0:00:20]} 35. h4 {[%clk 0:00:22]}  Re8 {[%clk 0:00:17]} 36. Qd3 {[%clk 0:00:19]}  Ne4 {[%clk 0:00:16]} 37. Nf4 {[%clk 0:00:18]}  Nf6+ {[%clk 0:00:15]} 38. Qf3 {[%clk 0:00:18]}  Qc4 {[%clk 0:00:14]} 39. Rd6 {[%clk 0:00:15]}  Qc2 {[%clk 0:00:13]} 40. b4 {[%clk 0:00:11]}  Qf5 {[%clk 0:00:12]} 41. h5 {[%clk 0:00:10]}  Ne4 {[%clk 0:00:06]} 42. Ng6+ {[%clk 0:00:10]} 1-0


[Site "https://www.chess.com"]

[Event "Titled Tuesday Blitz August 22 Late 2023"]
[White "So, Wesley"]
[Black "Sanal, Vahap"]
[WhiteFideId "5202213"]
[BlackFideId "6300545"]
[WhiteElo "3095"]
[BlackElo "2921"]
[Result "1/2-1/2"]
[Round "4"]
[TimeControl "180+1"]
[Date "2023.08.22"]
[WhiteClock "0:00:07"]
[BlackClock "0:00:03"]
[Board "2"]

1. b3 {[%clk 0:03:00]}  d5 {[%clk 0:02:57]} 2. Bb2 {[%clk 0:03:01]}  Bf5 {[%clk 0:02:57]} 3. Nf3 {[%clk 0:03:01]}  e6 {[%clk 0:02:57]} 4. g3 {[%clk 0:03:00]}  h6 {[%clk 0:02:58]} 5. Bg2 {[%clk 0:02:59]}  Nf6 {[%clk 0:02:58]} 6. O-O {[%clk 0:02:59]}  Be7 {[%clk 0:02:58]} 7. d3 {[%clk 0:02:58]}  O-O {[%clk 0:02:59]} 8. Ne5 {[%clk 0:02:57]}  Nbd7 {[%clk 0:02:56]} 9. Nxd7 {[%clk 0:02:56]}  Nxd7 {[%clk 0:02:56]} 10. e4 {[%clk 0:02:56]}  dxe4 {[%clk 0:02:54]} 11. dxe4 {[%clk 0:02:55]}  Bh7 {[%clk 0:02:55]} 12. Qe2 {[%clk 0:02:48]}  c6 {[%clk 0:02:52]} 13. Rd1 {[%clk 0:02:47]}  Qc7 {[%clk 0:02:51]} 14. Nd2 {[%clk 0:02:40]}  Bf6 {[%clk 0:02:48]} 15. Bxf6 {[%clk 0:02:34]}  Nxf6 {[%clk 0:02:49]} 16. Nc4 {[%clk 0:02:25]}  Rad8 {[%clk 0:02:46]} 17. a4 {[%clk 0:02:20]}  Bg6 {[%clk 0:02:26]} 18. Bf3 {[%clk 0:02:08]}  b5 {[%clk 0:02:15]} 19. Nb2 {[%clk 0:01:59]}  Rxd1+ {[%clk 0:02:06]} 20. Rxd1 {[%clk 0:02:00]}  bxa4 {[%clk 0:01:54]} 21. Nxa4 {[%clk 0:01:59]}  Qe5 {[%clk 0:01:50]} 22. Qe3 {[%clk 0:01:55]}  Nxe4 {[%clk 0:01:42]} 23. h4 {[%clk 0:01:37]}  a5 {[%clk 0:01:33]} 24. Re1 {[%clk 0:01:21]}  f5 {[%clk 0:01:31]} 25. Bxe4 {[%clk 0:01:14]}  fxe4 {[%clk 0:01:32]} 26. Qc3 {[%clk 0:01:12]}  Qxc3 {[%clk 0:01:22]} 27. Nxc3 {[%clk 0:01:13]}  e3 {[%clk 0:01:23]} 28. Rxe3 {[%clk 0:01:13]}  Bxc2 {[%clk 0:01:23]} 29. Na4 {[%clk 0:01:12]}  Rb8 {[%clk 0:01:19]} 30. Nc5 {[%clk 0:01:12]}  Kf7 {[%clk 0:01:10]} 31. g4 {[%clk 0:00:51]}  Rb5 {[%clk 0:01:05]} 32. Rc3 {[%clk 0:00:50]}  Bd1 {[%clk 0:01:05]} 33. g5 {[%clk 0:00:47]}  hxg5 {[%clk 0:01:04]} 34. hxg5 {[%clk 0:00:48]}  Ke7 {[%clk 0:01:03]} 35. f4 {[%clk 0:00:41]}  Kd6 {[%clk 0:00:52]} 36. Ne4+ {[%clk 0:00:39]}  Kd5 {[%clk 0:00:52]} 37. Nd2 {[%clk 0:00:39]}  Kd4 {[%clk 0:00:50]} 38. Rxc6 {[%clk 0:00:38]}  Ke3 {[%clk 0:00:46]} 39. Rd6 {[%clk 0:00:11]}  Kxf4 {[%clk 0:00:37]} 40. Rxe6 {[%clk 0:00:09]}  Rd5 {[%clk 0:00:31]} 41. Nc4 {[%clk 0:00:05]}  Bxb3 {[%clk 0:00:30]} 42. Rc6 {[%clk 0:00:04]}  Rd1+ {[%clk 0:00:07]} 43. Kf2 {[%clk 0:00:03]}  Rc1 {[%clk 0:00:07]} 44. Nxa5 {[%clk 0:00:03]}  Rxc6 {[%clk 0:00:02]} 45. Nxc6 {[%clk 0:00:04]}  Kxg5 {[%clk 0:00:02]} 46. Nd4 {[%clk 0:00:04]}  Bd5 {[%clk 0:00:02]} 47. Kg3 {[%clk 0:00:05]}  Kf6 {[%clk 0:00:03]} 48. Ne2 {[%clk 0:00:05]}  g5 {[%clk 0:00:03]} 49. Nf4 {[%clk 0:00:06]}  gxf4+ {[%clk 0:00:03]} 50. Kxf4 {[%clk 0:00:07]} 1/2-1/2


[Site "https://www.chess.com"]

[Event "Titled Tuesday Blitz August 22 Late 2023"]
[White "Kravtsiv, Martyn"]
[Black "Sarana, Alexey"]
[WhiteFideId "14113147"]
[BlackFideId "24133795"]
[WhiteElo "2892"]
[BlackElo "3070"]
[Result "0-1"]
[Round "4"]
[TimeControl "180+1"]
[Date "2023.08.22"]
[WhiteClock "0:00:00"]
[BlackClock "0:00:12"]
[Board "5"]

1. e4 {[%clk 0:03:00]}  c5 {[%clk 0:02:59]} 2. Nf3 {[%clk 0:03:01]}  d6 {[%clk 0:03:00]} 3. Bb5+ {[%clk 0:03:00]}  Bd7 {[%clk 0:02:59]} 4. Bxd7+ {[%clk 0:03:00]}  Nxd7 {[%clk 0:03:00]} 5. O-O {[%clk 0:02:57]}  e6 {[%clk 0:03:01]} 6. Qe2 {[%clk 0:02:53]}  Be7 {[%clk 0:03:00]} 7. d4 {[%clk 0:02:51]}  cxd4 {[%clk 0:03:01]} 8. Nxd4 {[%clk 0:02:51]}  Ngf6 {[%clk 0:02:58]} 9. c4 {[%clk 0:02:49]}  Rc8 {[%clk 0:02:58]} 10. Nc3 {[%clk 0:02:48]}  a6 {[%clk 0:02:59]} 11. a4 {[%clk 0:02:17]}  Qb6 {[%clk 0:02:55]} 12. Nc2 {[%clk 0:01:10]}  Ne5 {[%clk 0:02:44]} 13. Ne3 {[%clk 0:01:09]}  Qb3 {[%clk 0:02:35]} 14. Ra3 {[%clk 0:01:08]}  Qb4 {[%clk 0:02:35]} 15. a5 {[%clk 0:01:08]}  O-O {[%clk 0:02:21]} 16. Ra4 {[%clk 0:01:08]}  Qc5 {[%clk 0:02:18]} 17. Rd1 {[%clk 0:01:06]}  Rfd8 {[%clk 0:02:15]} 18. Kh1 {[%clk 0:00:53]}  Qc6 {[%clk 0:02:15]} 19. f3 {[%clk 0:00:51]}  Nh5 {[%clk 0:01:53]} 20. b3 {[%clk 0:00:49]}  Nf4 {[%clk 0:01:50]} 21. Qf1 {[%clk 0:00:47]}  Bf6 {[%clk 0:01:45]} 22. Na2 {[%clk 0:00:34]}  Qc5 {[%clk 0:01:35]} 23. Nb4 {[%clk 0:00:27]}  h5 {[%clk 0:01:15]} 24. Nec2 {[%clk 0:00:27]}  Neg6 {[%clk 0:00:57]} 25. Be3 {[%clk 0:00:27]}  Qe5 {[%clk 0:00:56]} 26. g3 {[%clk 0:00:25]}  Qc3 {[%clk 0:00:41]} 27. gxf4 {[%clk 0:00:21]}  Qxb3 {[%clk 0:00:42]} 28. Ra3 {[%clk 0:00:20]}  Qxc4 {[%clk 0:00:42]} 29. Qxc4 {[%clk 0:00:17]}  Rxc4 {[%clk 0:00:43]} 30. Rad3 {[%clk 0:00:17]}  Be7 {[%clk 0:00:36]} 31. Rd4 {[%clk 0:00:17]}  Rc3 {[%clk 0:00:34]} 32. R1d3 {[%clk 0:00:16]}  Rc7 {[%clk 0:00:34]} 33. Rd2 {[%clk 0:00:10]}  Rdc8 {[%clk 0:00:35]} 34. R4d3 {[%clk 0:00:10]}  Rc4 {[%clk 0:00:32]} 35. Rb3 {[%clk 0:00:05]}  Bd8 {[%clk 0:00:22]} 36. Kg1 {[%clk 0:00:05]}  Bxa5 {[%clk 0:00:22]} 37. Rxd6 {[%clk 0:00:04]}  Bc7 {[%clk 0:00:14]} 38. Rd4 {[%clk 0:00:03]}  Bxf4 {[%clk 0:00:11]} 39. Rxc4 {[%clk 0:00:03]}  Rxc4 {[%clk 0:00:10]} 40. Bxf4 {[%clk 0:00:03]}  Nxf4 {[%clk 0:00:11]} 41. Ne3 {[%clk 0:00:03]}  Rc1+ {[%clk 0:00:10]} 42. Kf2 {[%clk 0:00:03]}  Rh1 {[%clk 0:00:08]} 43. Nbc2 {[%clk 0:00:03]}  b5 {[%clk 0:00:05]} 44. Nf1 {[%clk 0:00:03]}  h4 {[%clk 0:00:05]} 45. Nce3 {[%clk 0:00:03]}  g5 {[%clk 0:00:05]} 46. Ra3 {[%clk 0:00:03]}  b4 {[%clk 0:00:04]} 47. Rxa6 {[%clk 0:00:03]}  b3 {[%clk 0:00:05]} 48. Rb6 {[%clk 0:00:03]}  b2 {[%clk 0:00:05]} 49. Nd1 {[%clk 0:00:03]}  Nh3+ {[%clk 0:00:04]} 50. Kg2 {[%clk 0:00:03]}  Rg1+ {[%clk 0:00:04]} 51. Kxh3 {[%clk 0:00:04]}  Rxf1 {[%clk 0:00:04]} 52. Nxb2 {[%clk 0:00:04]}  Rxf3+ {[%clk 0:00:04]} 53. Kg4 {[%clk 0:00:05]}  Rf4+ {[%clk 0:00:04]} 54. Kxg5 {[%clk 0:00:05]}  Rxe4 {[%clk 0:00:05]} 55. Nd3 {[%clk 0:00:05]}  Kg7 {[%clk 0:00:05]} 56. Nf4 {[%clk 0:00:05]}  f6+ {[%clk 0:00:05]} 57. Kg4 {[%clk 0:00:03]}  e5 {[%clk 0:00:06]} 58. Kxh4 {[%clk 0:00:02]}  Rxf4+ {[%clk 0:00:06]} 59. Kg3 {[%clk 0:00:02]}  Kg6 {[%clk 0:00:06]} 60. h4 {[%clk 0:00:03]}  Kh5 {[%clk 0:00:06]} 61. Rc6 {[%clk 0:00:02]}  Kg6 {[%clk 0:00:06]} 62. h5+ {[%clk 0:00:02]}  Kxh5 {[%clk 0:00:06]} 63. Rc8 {[%clk 0:00:01]}  Kg5 {[%clk 0:00:06]} 64. Rc3 {[%clk 0:00:01]}  Kf5 {[%clk 0:00:07]} 65. Rd3 {[%clk 0:00:01]}  Rd4 {[%clk 0:00:07]} 66. Rf3+ {[%clk 0:00:01]}  Kg5 {[%clk 0:00:07]} 67. Rf2 {[%clk 0:00:01]}  f5 {[%clk 0:00:08]} 68. Kg2 {[%clk 0:00:02]}  e4 {[%clk 0:00:08]} 69. Rb2 {[%clk 0:00:02]}  Rd3 {[%clk 0:00:09]} 70. Rb5 {[%clk 0:00:02]}  Kg4 {[%clk 0:00:09]} 71. Kf2 {[%clk 0:00:03]}  f4 {[%clk 0:00:10]} 72. Re5 {[%clk 0:00:03]}  Rd2+ {[%clk 0:00:10]} 73. Ke1 {[%clk 0:00:03]}  e3 {[%clk 0:00:11]} 74. Re4 {[%clk 0:00:03]}  Ra2 {[%clk 0:00:11]} 75. Re8 {[%clk 0:00:00]}  Kf3 {[%clk 0:00:12]} 0-1


[Site "https://www.chess.com"]

[Event "Titled Tuesday Blitz August 22 Late 2023"]
[White "Elsa167"]
[Black "Bluebaum, Matthias"]
[BlackFideId "24651516"]
[WhiteElo "2889"]
[BlackElo "3033"]
[Result "1/2-1/2"]
[Round "4"]
[TimeControl "180+1"]
[Date "2023.08.22"]
[WhiteClock "0:00:29"]
[BlackClock "0:00:49"]
[Board "6"]

1. d4 {[%clk 0:03:00]}  d5 {[%clk 0:02:59]} 2. c4 {[%clk 0:03:01]}  e6 {[%clk 0:03:00]} 3. Nf3 {[%clk 0:03:01]}  Nf6 {[%clk 0:03:00]} 4. Nc3 {[%clk 0:03:02]}  Bb4 {[%clk 0:03:00]} 5. Bg5 {[%clk 0:03:02]}  h6 {[%clk 0:02:59]} 6. Bxf6 {[%clk 0:03:02]}  Qxf6 {[%clk 0:03:00]} 7. e3 {[%clk 0:03:03]}  c5 {[%clk 0:03:00]} 8. cxd5 {[%clk 0:03:01]}  exd5 {[%clk 0:03:01]} 9. Bb5+ {[%clk 0:03:02]}  Bd7 {[%clk 0:03:02]} 10. Bxd7+ {[%clk 0:03:02]}  Nxd7 {[%clk 0:03:03]} 11. O-O {[%clk 0:02:58]}  Bxc3 {[%clk 0:03:03]} 12. bxc3 {[%clk 0:02:59]}  O-O {[%clk 0:03:04]} 13. a4 {[%clk 0:02:57]}  Qc6 {[%clk 0:03:03]} 14. Qb3 {[%clk 0:02:51]}  Rab8 {[%clk 0:03:00]} 15. a5 {[%clk 0:02:47]}  Rfc8 {[%clk 0:02:58]} 16. Rfb1 {[%clk 0:02:46]}  b5 {[%clk 0:02:50]} 17. axb6 {[%clk 0:02:46]}  Rxb6 {[%clk 0:02:50]} 18. Qa3 {[%clk 0:02:34]}  Rcb8 {[%clk 0:02:16]} 19. Rxb6 {[%clk 0:02:32]}  axb6 {[%clk 0:02:17]} 20. h3 {[%clk 0:02:25]}  b5 {[%clk 0:02:12]} 21. dxc5 {[%clk 0:02:17]}  Qxc5 {[%clk 0:02:10]} 22. Nd4 {[%clk 0:02:08]}  Qxa3 {[%clk 0:01:43]} 23. Rxa3 {[%clk 0:02:09]}  b4 {[%clk 0:01:44]} 24. cxb4 {[%clk 0:02:04]}  Rxb4 {[%clk 0:01:45]} 25. Ra8+ {[%clk 0:01:49]}  Rb8 {[%clk 0:01:43]} 26. Ra7 {[%clk 0:01:46]}  Nf6 {[%clk 0:01:41]} 27. Nf5 {[%clk 0:01:46]}  Rd8 {[%clk 0:01:23]} 28. g4 {[%clk 0:01:45]}  Ne4 {[%clk 0:00:55]} 29. f3 {[%clk 0:01:21]}  Nd6 {[%clk 0:00:55]} 30. Nxd6 {[%clk 0:01:07]}  Rxd6 {[%clk 0:00:55]} 31. Kf2 {[%clk 0:01:07]}  d4 {[%clk 0:00:55]} 32. e4 {[%clk 0:00:53]}  g5 {[%clk 0:00:48]} 33. Ke2 {[%clk 0:00:46]}  Kg7 {[%clk 0:00:48]} 34. Kd3 {[%clk 0:00:45]}  Rf6 {[%clk 0:00:48]} 35. Ke2 {[%clk 0:00:42]}  Rb6 {[%clk 0:00:48]} 36. Rd7 {[%clk 0:00:33]}  Rb2+ {[%clk 0:00:48]} 37. Ke1 {[%clk 0:00:31]}  Rb3 {[%clk 0:00:47]} 38. Ke2 {[%clk 0:00:28]}  Rb2+ {[%clk 0:00:47]} 39. Ke1 {[%clk 0:00:29]}  Rb3 {[%clk 0:00:48]} 40. Ke2 {[%clk 0:00:29]}  Rb2+ {[%clk 0:00:49]} 1/2-1/2


[Site "https://www.chess.com"]

[Event "Titled Tuesday Blitz August 22 Late 2023"]
[White "Durarbayli, Vasif"]
[Black "Martinez Alcantara, Jose Eduardo"]
[WhiteFideId "13402935"]
[BlackFideId "3805662"]
[WhiteElo "2862"]
[BlackElo "3026"]
[Result "1-0"]
[Round "4"]
[TimeControl "180+1"]
[Date "2023.08.22"]
[WhiteClock "0:00:09"]
[BlackClock "0:00:00"]
[Board "8"]

1. e4 {[%clk 0:03:00]}  c5 {[%clk 0:02:56]} 2. Nf3 {[%clk 0:03:00]}  a6 {[%clk 0:02:55]} 3. c3 {[%clk 0:02:58]}  d5 {[%clk 0:02:51]} 4. exd5 {[%clk 0:02:55]}  Qxd5 {[%clk 0:02:51]} 5. d4 {[%clk 0:02:56]}  Nf6 {[%clk 0:02:51]} 6. Be3 {[%clk 0:02:50]}  cxd4 {[%clk 0:02:51]} 7. cxd4 {[%clk 0:02:51]}  e6 {[%clk 0:02:51]} 8. Nc3 {[%clk 0:02:51]}  Qd8 {[%clk 0:02:52]} 9. Bd3 {[%clk 0:02:47]}  Be7 {[%clk 0:02:50]} 10. O-O {[%clk 0:02:47]}  O-O {[%clk 0:02:50]} 11. Ne5 {[%clk 0:02:48]}  Bd7 {[%clk 0:02:38]} 12. Qf3 {[%clk 0:02:37]}  Nc6 {[%clk 0:02:39]} 13. Rad1 {[%clk 0:02:37]}  Rc8 {[%clk 0:02:34]} 14. Qh3 {[%clk 0:02:29]}  Nb4 {[%clk 0:02:28]} 15. Bb1 {[%clk 0:02:24]}  g6 {[%clk 0:02:28]} 16. Bh6 {[%clk 0:01:54]}  Re8 {[%clk 0:02:27]} 17. Rfe1 {[%clk 0:01:54]}  Nbd5 {[%clk 0:02:17]} 18. Rd3 {[%clk 0:01:54]}  Nxc3 {[%clk 0:01:27]} 19. bxc3 {[%clk 0:01:55]}  Qa5 {[%clk 0:01:03]} 20. Rf3 {[%clk 0:01:16]}  Bc6 {[%clk 0:01:03]} 21. Rg3 {[%clk 0:01:16]}  Bd6 {[%clk 0:00:49]} 22. Qh4 {[%clk 0:00:53]}  Nd7 {[%clk 0:00:38]} 23. Bf4 {[%clk 0:00:12]}  Nxe5 {[%clk 0:00:25]} 24. dxe5 {[%clk 0:00:12]}  Bf8 {[%clk 0:00:22]} 25. Rh3 {[%clk 0:00:13]}  h5 {[%clk 0:00:19]} 26. Qg3 {[%clk 0:00:12]}  Bg7 {[%clk 0:00:16]} 27. Rxh5 {[%clk 0:00:12]}  Qc7 {[%clk 0:00:10]} 28. Rg5 {[%clk 0:00:10]}  Bb5 {[%clk 0:00:06]} 29. Re3 {[%clk 0:00:10]}  Red8 {[%clk 0:00:06]} 30. Bc2 {[%clk 0:00:08]}  Rd2 {[%clk 0:00:06]} 31. Bb3 {[%clk 0:00:09]}  Rcd8 {[%clk 0:00:05]} 32. h4 {[%clk 0:00:09]}  Bc4 {[%clk 0:00:04]} 33. h5 {[%clk 0:00:08]}  Bxb3 {[%clk 0:00:05]} 34. axb3 {[%clk 0:00:09]}  Rd1+ {[%clk 0:00:05]} 35. Kh2 {[%clk 0:00:10]}  Bh6 {[%clk 0:00:04]} 36. hxg6 {[%clk 0:00:09]}  Bxg5 {[%clk 0:00:04]} 37. Bxg5 {[%clk 0:00:10]}  fxg6 {[%clk 0:00:00]} 38. Bxd8 {[%clk 0:00:09]} 1-0


[Site "https://www.chess.com"]

[Event "Titled Tuesday Blitz August 22 Late 2023"]
[White "Sadhwani, Raunak"]
[Black "Asadli, Vugar"]
[WhiteFideId "35093487"]
[BlackFideId "13405764"]
[WhiteElo "3019"]
[BlackElo "2852"]
[Result "1-0"]
[Round "4"]
[TimeControl "180+1"]
[Date "2023.08.22"]
[WhiteClock "0:00:49"]
[BlackClock "0:01:17"]
[Board "9"]

1. e4 {[%clk 0:02:59]}  c5 {[%clk 0:02:59]} 2. Nf3 {[%clk 0:02:59]}  e6 {[%clk 0:03:00]} 3. c3 {[%clk 0:02:57]}  Nf6 {[%clk 0:02:57]} 4. e5 {[%clk 0:02:57]}  Nd5 {[%clk 0:02:58]} 5. d4 {[%clk 0:02:58]}  cxd4 {[%clk 0:02:57]} 6. cxd4 {[%clk 0:02:59]}  b6 {[%clk 0:02:57]} 7. Bc4 {[%clk 0:02:43]}  Ba6 {[%clk 0:02:53]} 8. b3 {[%clk 0:02:35]}  Bb4+ {[%clk 0:02:37]} 9. Bd2 {[%clk 0:02:33]}  Bxd2+ {[%clk 0:02:25]} 10. Qxd2 {[%clk 0:02:26]}  d6 {[%clk 0:02:21]} 11. O-O {[%clk 0:02:21]}  O-O {[%clk 0:02:15]} 12. Rd1 {[%clk 0:02:21]}  Bb7 {[%clk 0:02:12]} 13. Nc3 {[%clk 0:02:04]}  Nxc3 {[%clk 0:02:00]} 14. Qxc3 {[%clk 0:02:05]}  Nd7 {[%clk 0:02:00]} 15. d5 {[%clk 0:02:01]}  b5 {[%clk 0:01:31]} 16. dxe6 {[%clk 0:01:46]}  bxc4 {[%clk 0:01:31]} 17. exd7 {[%clk 0:01:47]}  cxb3 {[%clk 0:01:31]} 18. Rxd6 {[%clk 0:01:44]}  Bxf3 {[%clk 0:01:26]} 19. Qxf3 {[%clk 0:01:26]}  b2 {[%clk 0:01:26]} 20. Rb1 {[%clk 0:01:27]}  Qa5 {[%clk 0:01:18]} 21. Qd5 {[%clk 0:00:49]}  Qa6 {[%clk 0:01:17]} 1-0


[Site "https://www.chess.com"]

[Event "Titled Tuesday Blitz August 22 Late 2023"]
[White "Pakleza, Zbigniew"]
[Black "Matlakov, Maxim"]
[WhiteFideId "1119290"]
[BlackFideId "4168003"]
[WhiteElo "2841"]
[BlackElo "3006"]
[Result "0-1"]
[Round "4"]
[TimeControl "180+1"]
[Date "2023.08.22"]
[WhiteClock "0:00:02"]
[BlackClock "0:00:09"]
[Board "10"]

1. d4 {[%clk 0:03:00]}  Nf6 {[%clk 0:02:58]} 2. Nf3 {[%clk 0:03:01]}  d5 {[%clk 0:02:57]} 3. Bf4 {[%clk 0:03:01]}  Bf5 {[%clk 0:02:49]} 4. e3 {[%clk 0:02:57]}  e6 {[%clk 0:02:49]} 5. Bd3 {[%clk 0:02:57]}  Bg6 {[%clk 0:02:49]} 6. O-O {[%clk 0:02:57]}  Nbd7 {[%clk 0:02:48]} 7. c4 {[%clk 0:02:53]}  c6 {[%clk 0:02:46]} 8. Nc3 {[%clk 0:02:52]}  Be7 {[%clk 0:02:45]} 9. h3 {[%clk 0:02:51]}  O-O {[%clk 0:02:41]} 10. Bxg6 {[%clk 0:02:49]}  hxg6 {[%clk 0:02:42]} 11. Qe2 {[%clk 0:02:44]}  a6 {[%clk 0:02:36]} 12. e4 {[%clk 0:02:36]}  dxc4 {[%clk 0:02:30]} 13. Qxc4 {[%clk 0:02:37]}  Rc8 {[%clk 0:02:26]} 14. Rad1 {[%clk 0:02:24]}  b5 {[%clk 0:02:25]} 15. Qe2 {[%clk 0:02:20]}  Qb6 {[%clk 0:02:11]} 16. Bg5 {[%clk 0:02:12]}  Rfe8 {[%clk 0:01:59]} 17. e5 {[%clk 0:02:02]}  Nd5 {[%clk 0:01:59]} 18. Ne4 {[%clk 0:02:02]}  Bf8 {[%clk 0:01:55]} 19. Rd3 {[%clk 0:01:17]}  c5 {[%clk 0:01:55]} 20. dxc5 {[%clk 0:01:16]}  Nxc5 {[%clk 0:01:56]} 21. Nxc5 {[%clk 0:01:16]}  Rxc5 {[%clk 0:01:55]} 22. Be3 {[%clk 0:00:59]}  Nxe3 {[%clk 0:01:53]} 23. Qxe3 {[%clk 0:00:57]}  Rd8 {[%clk 0:01:27]} 24. Rfd1 {[%clk 0:00:54]}  Rxd3 {[%clk 0:01:26]} 25. Rxd3 {[%clk 0:00:55]}  Qc7 {[%clk 0:01:25]} 26. Qf4 {[%clk 0:00:38]}  Be7 {[%clk 0:01:23]} 27. Kh2 {[%clk 0:00:33]}  Rc4 {[%clk 0:01:05]} 28. Qe3 {[%clk 0:00:28]}  Bc5 {[%clk 0:01:04]} 29. Qd2 {[%clk 0:00:25]}  Be7 {[%clk 0:00:33]} 30. Rd7 {[%clk 0:00:25]}  Qc5 {[%clk 0:00:33]} 31. Rb7 {[%clk 0:00:12]}  Rc2 {[%clk 0:00:33]} 32. Qf4 {[%clk 0:00:06]}  Qxf2 {[%clk 0:00:32]} 33. Rb8+ {[%clk 0:00:05]}  Kh7 {[%clk 0:00:33]} 34. Qg4 {[%clk 0:00:02]}  Rc4 {[%clk 0:00:28]} 35. Qg3 {[%clk 0:00:02]}  Qxg3+ {[%clk 0:00:27]} 36. Kxg3 {[%clk 0:00:03]}  Rc7 {[%clk 0:00:24]} 37. Ra8 {[%clk 0:00:03]}  g5 {[%clk 0:00:17]} 38. Rxa6 {[%clk 0:00:03]}  Kg6 {[%clk 0:00:17]} 39. b3 {[%clk 0:00:03]}  Kf5 {[%clk 0:00:17]} 40. Ra5 {[%clk 0:00:03]}  b4 {[%clk 0:00:17]} 41. Ra6 {[%clk 0:00:02]}  Rc3 {[%clk 0:00:16]} 42. Ra7 {[%clk 0:00:01]}  Bc5 {[%clk 0:00:12]} 43. Rxf7+ {[%clk 0:00:02]}  Kg6 {[%clk 0:00:12]} 44. Rb7 {[%clk 0:00:02]}  Rc2 {[%clk 0:00:10]} 45. Rb5 {[%clk 0:00:02]}  Be3 {[%clk 0:00:09]} 46. Kg4 {[%clk 0:00:02]}  Rxg2# {[%clk 0:00:09]} 0-1


[Site "https://www.chess.com"]